[Event "*** SCC Grand Prix: Titled Tuesday Blitz"]
[Site "Chess.com"]
[Date "2020.07.14"]
[Round "6"]
[White "GothamChess"]
[Black "Oligan22"]
[Result "0-1"]
[WhiteElo "2587"]
[BlackElo "2463"]
[TimeControl "180+1"]
[EndTime "11:07:16 PDT"]
[Termination "Oligan22 won by resignation"]

1. e4 {[%clk 0:03:00.9]} 1... c5 {[%clk 0:02:59.7]} 2. a3 {[%clk 0:02:58]} 2...
e6 {[%clk 0:02:57.3]} 3. b4 {[%clk 0:02:57.8]} 3... b6 {[%clk 0:02:53.1]} 4. Bb2
{[%clk 0:02:57.7]} 4... Nf6 {[%clk 0:02:51.6]} 5. e5 {[%clk 0:02:53]} 5... Nd5
{[%clk 0:02:51.5]} 6. Qf3 {[%clk 0:02:51.1]} 6... Nc6 {[%clk 0:02:27.4]} 7. c4
{[%clk 0:02:50.3]} 7... Nc7 {[%clk 0:02:24.3]} 8. b5 {[%clk 0:02:50.4]} 8... Na5
{[%clk 0:02:24.3]} 9. Bd3 {[%clk 0:02:46.4]} 9... Bb7 {[%clk 0:02:21.9]} 10. Qg3
{[%clk 0:02:44.6]} 10... g6 {[%clk 0:02:11.9]} 11. Nf3 {[%clk 0:02:43.3]} 11...
Bg7 {[%clk 0:02:03]} 12. Nc3 {[%clk 0:02:40.9]} 12... O-O {[%clk 0:02:02.9]} 13.
Ne4 {[%clk 0:02:40.2]} 13... Ne8 {[%clk 0:02:03]} 14. Rc1 {[%clk 0:02:34.2]}
14... Nb3 {[%clk 0:01:58.2]} 15. O-O {[%clk 0:02:32.9]} 15... Nxc1 {[%clk
0:01:58]} 16. Rxc1 {[%clk 0:02:32.3]} 16... f5 {[%clk 0:01:54.9]} 17. Neg5
{[%clk 0:02:22.5]} 17... h6 {[%clk 0:01:49.6]} 18. Nh3 {[%clk 0:02:19.7]} 18...
g5 {[%clk 0:01:46.1]} 19. Nhxg5 {[%clk 0:02:19.1]} 19... hxg5 {[%clk 0:01:47]}
20. Nxg5 {[%clk 0:02:19.5]} 20... Qe7 {[%clk 0:01:38.7]} 21. Be2 {[%clk
0:02:00.2]} 21... f4 {[%clk 0:01:22.7]} 22. Qh4 {[%clk 0:01:58.5]} 22... Bh8
{[%clk 0:01:19.4]} 23. Bd3 {[%clk 0:01:54]} 23... Rf5 {[%clk 0:01:10.1]} 24.
Bxf5 {[%clk 0:01:47.7]} 24... exf5 {[%clk 0:01:11]} 25. Rc3 {[%clk 0:01:34.4]}
25... Bxe5 {[%clk 0:01:01.2]} 26. Re3 {[%clk 0:00:16.6]} 26... fxe3 {[%clk
0:00:41.5]} 27. Bxe5 {[%clk 0:00:16]} 27... exf2+ {[%clk 0:00:31.5]} 28. Kxf2
{[%clk 0:00:11.9]} 28... Nf6 {[%clk 0:00:32]} 29. Bxf6 {[%clk 0:00:04]} 29...
Qxf6 {[%clk 0:00:32.9]} 30. Qh7+ {[%clk 0:00:04.4]} 30... Kf8 {[%clk 0:00:33.3]}
31. Qh5 {[%clk 0:00:05.3]} 31... Ke7 {[%clk 0:00:28.6]} 32. Qh7+ {[%clk
0:00:04.3]} 32... Kd6 {[%clk 0:00:28.4]} 33. Qh4 {[%clk 0:00:05.2]} 33... Qd4+
{[%clk 0:00:26.2]} 34. Qxd4+ {[%clk 0:00:05.3]} 34... cxd4 {[%clk 0:00:27.1]}
35. h4 {[%clk 0:00:05.8]} 35... Rg8 {[%clk 0:00:24.2]} 36. d3 {[%clk 0:00:05.3]}
36... a6 {[%clk 0:00:22.7]} 37. a4 {[%clk 0:00:04.9]} 37... axb5 {[%clk
0:00:22.9]} 38. axb5 {[%clk 0:00:05.8]} 38... Ke5 {[%clk 0:00:22.2]} 39. Kg3
{[%clk 0:00:05.4]} 39... f4+ {[%clk 0:00:21]} 40. Kf2 {[%clk 0:00:06]} 40... Kf5
{[%clk 0:00:20]} 41. g3 {[%clk 0:00:05.4]} 41... Kg4 {[%clk 0:00:18.3]} 42. gxf4
{[%clk 0:00:02.3]} 42... Kxf4 {[%clk 0:00:18.5]} 0-1

[Event "*** SCC Grand Prix: Titled Tuesday Blitz"]
[Site "Chess.com"]
[Date "2020.07.14"]
[Round "6"]
[White "NefeLV"]
[Black "rududuyk"]
[Result "0-1"]
[WhiteElo "1819"]
[BlackElo "2069"]
[TimeControl "180+1"]
[EndTime "11:07:16 PDT"]
[Termination "rududuyk won by checkmate"]

1. c4 {[%clk 0:02:59.9]} 1... e5 {[%clk 0:02:59.4]} 2. Nc3 {[%clk 0:03:00.2]}
2... Nc6 {[%clk 0:02:59.4]} 3. e4 {[%clk 0:03:00.1]} 3... Bc5 {[%clk 0:02:56]}
4. Nge2 {[%clk 0:02:59.2]} 4... d6 {[%clk 0:02:56]} 5. g3 {[%clk 0:02:58.4]}
5... f5 {[%clk 0:02:54.9]} 6. Bg2 {[%clk 0:02:56.1]} 6... Nf6 {[%clk 0:02:53]}
7. O-O {[%clk 0:02:53.1]} 7... O-O {[%clk 0:02:52.6]} 8. exf5 {[%clk 0:02:45.5]}
8... Bxf5 {[%clk 0:02:50.5]} 9. Na4 {[%clk 0:02:38.9]} 9... Bd4 {[%clk
0:02:17.1]} 10. Nxd4 {[%clk 0:02:27.9]} 10... Nxd4 {[%clk 0:02:16.5]} 11. Bxb7
{[%clk 0:02:23.9]} 11... Rb8 {[%clk 0:02:14.9]} 12. Bg2 {[%clk 0:02:20.1]} 12...
Qe8 {[%clk 0:02:04.8]} 13. Nc3 {[%clk 0:02:02.1]} 13... Bd3 {[%clk 0:01:58.5]}
14. b3 {[%clk 0:01:46.6]} 14... Bxf1 {[%clk 0:01:54.9]} 15. Qxf1 {[%clk
0:01:46.4]} 15... Qh5 {[%clk 0:01:45.3]} 16. f4 {[%clk 0:01:34.4]} 16... Ng4
{[%clk 0:01:27.4]} 17. h3 {[%clk 0:01:31.6]} 17... Nh6 {[%clk 0:01:26.4]} 18. g4
{[%clk 0:01:25.1]} 18... Qh4 {[%clk 0:01:20.6]} 19. f5 {[%clk 0:01:17.8]} 19...
g6 {[%clk 0:01:11.4]} 20. Nd5 {[%clk 0:00:58.4]} 20... gxf5 {[%clk 0:01:01.9]}
21. g5 {[%clk 0:00:58.2]} 21... Qxg5 {[%clk 0:00:48.3]} 22. d3 {[%clk
0:00:57.8]} 22... Qg7 {[%clk 0:00:43.8]} 23. Nxc7 {[%clk 0:00:49]} 23... f4
{[%clk 0:00:35.4]} 24. Nd5 {[%clk 0:00:17.1]} 24... Nhf5 {[%clk 0:00:27.5]} 25.
Bd2 {[%clk 0:00:15]} 25... Kh8 {[%clk 0:00:20.1]} 26. Re1 {[%clk 0:00:13.6]}
26... Rg8 {[%clk 0:00:19.5]} 27. Kh2 {[%clk 0:00:12.8]} 27... Qg3+ {[%clk
0:00:15.4]} 28. Kh1 {[%clk 0:00:13]} 28... Nh4 {[%clk 0:00:11.3]} 29. Nf6 {[%clk
0:00:10.9]} 29... Qxg2+ {[%clk 0:00:09]} 30. Qxg2 {[%clk 0:00:09]} 30... Rxg2
{[%clk 0:00:09.4]} 31. Bc3 {[%clk 0:00:08.9]} 31... Ndf3 {[%clk 0:00:05.3]} 32.
Re2 {[%clk 0:00:04.7]} 32... Rxe2 {[%clk 0:00:04.9]} 33. Bxe5 {[%clk 0:00:02.5]}
33... Rh2# {[%clk 0:00:04.5]} 0-1

[Event "*** SCC Grand Prix: Titled Tuesday Blitz"]
[Site "Chess.com"]
[Date "2020.07.14"]
[Round "6"]
[White "Sueetin"]
[Black "SzMM19"]
[Result "0-1"]
[WhiteElo "2333"]
[BlackElo "2561"]
[TimeControl "180+1"]
[EndTime "11:07:17 PDT"]
[Termination "SzMM19 won by resignation"]

1. d4 {[%clk 0:03:00.9]} 1... Nf6 {[%clk 0:03:00]} 2. c4 {[%clk 0:03:01]} 2...
e6 {[%clk 0:03:00.4]} 3. Nf3 {[%clk 0:03:00.8]} 3... b6 {[%clk 0:03:00.6]} 4. a3
{[%clk 0:03:00.6]} 4... Bb7 {[%clk 0:03:00.8]} 5. Nc3 {[%clk 0:03:01.1]} 5...
Ne4 {[%clk 0:03:01.2]} 6. Nxe4 {[%clk 0:03:00]} 6... Bxe4 {[%clk 0:03:02.1]} 7.
Nd2 {[%clk 0:03:00.6]} 7... Bg6 {[%clk 0:03:02.7]} 8. e4 {[%clk 0:02:53.2]} 8...
Nc6 {[%clk 0:03:02.9]} 9. d5 {[%clk 0:02:47.1]} 9... Nd4 {[%clk 0:03:02.4]} 10.
Bd3 {[%clk 0:02:14.9]} 10... Be7 {[%clk 0:02:46.2]} 11. O-O {[%clk 0:02:13.8]}
11... O-O {[%clk 0:02:40.9]} 12. f4 {[%clk 0:02:09.3]} 12... f5 {[%clk
0:02:23.8]} 13. e5 {[%clk 0:02:08.9]} 13... a5 {[%clk 0:02:12.4]} 14. b3 {[%clk
0:01:59.9]} 14... Qe8 {[%clk 0:01:52.9]} 15. Bb2 {[%clk 0:01:59.3]} 15... Bh5
{[%clk 0:01:50.5]} 16. Qe1 {[%clk 0:01:59.4]} 16... c5 {[%clk 0:01:43.2]} 17.
dxc6 {[%clk 0:01:55.1]} 17... Nxc6 {[%clk 0:01:40.4]} 18. Nb1 {[%clk 0:01:50.7]}
18... g5 {[%clk 0:01:33.6]} 19. Nc3 {[%clk 0:01:43.1]} 19... Qg6 {[%clk
0:01:26.2]} 20. Ne2 {[%clk 0:01:29.1]} 20... Qg7 {[%clk 0:01:13.1]} 21. Kh1
{[%clk 0:01:23.5]} 21... g4 {[%clk 0:01:05.2]} 22. Ng3 {[%clk 0:01:01.3]} 22...
Bg6 {[%clk 0:01:05.3]} 23. Rd1 {[%clk 0:01:00.6]} 23... h5 {[%clk 0:01:04.7]}
24. Bc2 {[%clk 0:01:00.4]} 24... Ra7 {[%clk 0:00:59.6]} 25. Qe3 {[%clk
0:00:59.9]} 25... Rb7 {[%clk 0:00:59.7]} 26. Ne2 {[%clk 0:00:55.7]} 26... h4
{[%clk 0:00:58.5]} 27. Nc3 {[%clk 0:00:53]} 27... Bc5 {[%clk 0:00:51.7]} 28. Qd2
{[%clk 0:00:41.3]} 28... Nd4 {[%clk 0:00:44]} 29. Nb5 {[%clk 0:00:27.9]} 29...
Nxc2 {[%clk 0:00:24.2]} 30. Qxc2 {[%clk 0:00:26.9]} 30... Bh5 {[%clk 0:00:23.2]}
31. Nd6 {[%clk 0:00:21.5]} 31... Rbb8 {[%clk 0:00:23.3]} 32. Qd2 {[%clk
0:00:21.5]} 32... g3 {[%clk 0:00:20.6]} 33. h3 {[%clk 0:00:16.3]} 33... Bxd1
{[%clk 0:00:19.9]} 34. Rxd1 {[%clk 0:00:15.5]} 34... Qh6 {[%clk 0:00:16.9]} 35.
b4 {[%clk 0:00:15.2]} 35... axb4 {[%clk 0:00:14.9]} 36. axb4 {[%clk 0:00:16.1]}
36... Bf2 {[%clk 0:00:15.1]} 37. Qe2 {[%clk 0:00:11.9]} 37... Qxf4 {[%clk
0:00:10.7]} 38. Rd4 {[%clk 0:00:09.7]} 38... Bxd4 {[%clk 0:00:08.9]} 0-1

[Event "*** SCC Grand Prix: Titled Tuesday Blitz"]
[Site "Chess.com"]
[Date "2020.07.14"]
[Round "6"]
[White "sea-needle"]
[Black "GianmarcoVaR"]
[Result "1-0"]
[WhiteElo "2334"]
[BlackElo "2501"]
[TimeControl "180+1"]
[EndTime "11:07:17 PDT"]
[Termination "sea-needle won on time"]

1. c4 {[%clk 0:03:00.9]} 1... Nf6 {[%clk 0:02:55.4]} 2. g3 {[%clk 0:03:00.1]}
2... e5 {[%clk 0:02:55.8]} 3. Bg2 {[%clk 0:03:00.9]} 3... c6 {[%clk 0:02:55.6]}
4. Nf3 {[%clk 0:02:59.8]} 4... e4 {[%clk 0:02:55]} 5. Nd4 {[%clk 0:02:59.7]}
5... d5 {[%clk 0:02:53.8]} 6. d3 {[%clk 0:02:57.2]} 6... Bc5 {[%clk 0:02:45.9]}
7. Nb3 {[%clk 0:02:52.1]} 7... Bb6 {[%clk 0:02:42.8]} 8. cxd5 {[%clk 0:02:49.4]}
8... cxd5 {[%clk 0:02:43.2]} 9. dxe4 {[%clk 0:02:48.3]} 9... Nxe4 {[%clk
0:02:41.8]} 10. Bxe4 {[%clk 0:02:35.9]} 10... dxe4 {[%clk 0:02:42.3]} 11. Qxd8+
{[%clk 0:02:34.6]} 11... Bxd8 {[%clk 0:02:40.9]} 12. Nc3 {[%clk 0:02:30.7]}
12... f5 {[%clk 0:02:38.2]} 13. Bf4 {[%clk 0:02:13.3]} 13... Kf7 {[%clk
0:02:16.7]} 14. O-O-O {[%clk 0:02:11.6]} 14... Bf6 {[%clk 0:01:43.5]} 15. Nb5
{[%clk 0:02:11.1]} 15... Be6 {[%clk 0:01:28.8]} 16. Nc7 {[%clk 0:02:08.9]} 16...
Rc8 {[%clk 0:00:43.6]} 17. Kb1 {[%clk 0:02:08.6]} 17... g5 {[%clk 0:00:44]} 18.
Bd6 {[%clk 0:02:07.2]} 18... Rxc7 {[%clk 0:00:39.3]} 19. Bxc7 {[%clk 0:02:06.6]}
19... Na6 {[%clk 0:00:40.2]} 20. Ba5 {[%clk 0:01:59.9]} 20... b6 {[%clk
0:00:36.8]} 21. Bc3 {[%clk 0:01:55.7]} 21... Bxc3 {[%clk 0:00:37.2]} 22. bxc3
{[%clk 0:01:55.5]} 22... Rc8 {[%clk 0:00:38]} 23. Rc1 {[%clk 0:01:53]} 23... Nc7
{[%clk 0:00:32.8]} 24. Rhd1 {[%clk 0:01:44]} 24... Kf6 {[%clk 0:00:33]} 25. Kb2
{[%clk 0:01:40.3]} 25... Ke5 {[%clk 0:00:20.3]} 26. Nd4 {[%clk 0:01:36.5]} 26...
Bd5 {[%clk 0:00:17.6]} 27. c4 {[%clk 0:01:34.4]} 27... Bb7 {[%clk 0:00:17.3]}
28. Nb5 {[%clk 0:01:33.4]} 28... Ne6 {[%clk 0:00:15.7]} 29. Nxa7 {[%clk
0:01:30.3]} 29... Rc5 {[%clk 0:00:16]} 30. Nb5 {[%clk 0:01:30.1]} 30... f4
{[%clk 0:00:14.9]} 31. a4 {[%clk 0:01:19.6]} 31... Bc6 {[%clk 0:00:14.7]} 32.
Rc3 {[%clk 0:01:13.4]} 32... h5 {[%clk 0:00:12.8]} 33. e3 {[%clk 0:01:12.7]}
33... f3 {[%clk 0:00:11.5]} 34. Kb3 {[%clk 0:01:10.7]} 34... h4 {[%clk
0:00:09.5]} 35. Nd4 {[%clk 0:01:09.9]} 35... Bd7 {[%clk 0:00:07.9]} 36. Kb4
{[%clk 0:01:04.9]} 36... Ra5 {[%clk 0:00:06.7]} 37. Nxe6 {[%clk 0:01:04.1]}
37... Kxe6 {[%clk 0:00:05.9]} 38. Ra3 {[%clk 0:01:01.8]} 38... Bc6 {[%clk
0:00:04.5]} 39. Rc1 {[%clk 0:01:00.6]} 39... Ra8 {[%clk 0:00:02.3]} 40. c5
{[%clk 0:00:59.8]} 40... bxc5+ {[%clk 0:00:02]} 41. Rxc5 {[%clk 0:00:58.9]}
41... Rb8+ {[%clk 0:00:02.5]} 42. Kc3 {[%clk 0:00:58.7]} 42... Bd5 {[%clk
0:00:02.2]} 43. a5 {[%clk 0:00:55.7]} 43... Ra8 {[%clk 0:00:01.3]} 44. a6 {[%clk
0:00:54.7]} 44... Kd6 {[%clk 0:00:01.9]} 45. Raa5 {[%clk 0:00:52.9]} 45... Bc6
{[%clk 0:00:02.5]} 46. Rxg5 {[%clk 0:00:51.8]} 46... hxg3 {[%clk 0:00:03]} 47.
hxg3 {[%clk 0:00:50.8]} 47... Kc7 {[%clk 0:00:03.1]} 48. a7 {[%clk 0:00:48.2]}
48... Kb6 {[%clk 0:00:02.9]} 49. Ra3 {[%clk 0:00:47.5]} 49... Rc8 {[%clk
0:00:02.7]} 50. Kd4 {[%clk 0:00:45.5]} 50... Ba8 {[%clk 0:00:03.3]} 51. Rg6+
{[%clk 0:00:44.6]} 51... Kb7 {[%clk 0:00:03]} 52. Rg7+ {[%clk 0:00:44.7]} 52...
Kb6 {[%clk 0:00:03.2]} 53. Rb3+ {[%clk 0:00:44.7]} 53... Ka6 {[%clk 0:00:01.9]}
54. Rb8 {[%clk 0:00:45.2]} 1-0

[Event "*** SCC Grand Prix: Titled Tuesday Blitz"]
[Site "Chess.com"]
[Date "2020.07.14"]
[Round "6"]
[White "MacDaddyMac"]
[Black "ljuks68"]
[Result "0-1"]
[WhiteElo "2306"]
[BlackElo "2448"]
[TimeControl "180+1"]
[EndTime "11:07:17 PDT"]
[Termination "ljuks68 won on time"]

1. e4 {[%clk 0:03:00.9]} 1... e6 {[%clk 0:02:59.7]} 2. d4 {[%clk 0:03:00.7]}
2... d5 {[%clk 0:02:59.9]} 3. e5 {[%clk 0:03:01.2]} 3... c5 {[%clk 0:02:59.8]}
4. c3 {[%clk 0:03:01.6]} 4... Nc6 {[%clk 0:03:00.4]} 5. Nf3 {[%clk 0:03:01.8]}
5... Qb6 {[%clk 0:02:59.9]} 6. a3 {[%clk 0:03:00.8]} 6... c4 {[%clk 0:02:59.9]}
7. Be2 {[%clk 0:03:01]} 7... Na5 {[%clk 0:02:58.8]} 8. Nbd2 {[%clk 0:02:55.7]}
8... Bd7 {[%clk 0:02:58.4]} 9. O-O {[%clk 0:02:52.3]} 9... Ne7 {[%clk
0:02:58.2]} 10. Ng5 {[%clk 0:02:52.4]} 10... h6 {[%clk 0:02:54.8]} 11. Nh3
{[%clk 0:02:50.7]} 11... Nf5 {[%clk 0:02:53.7]} 12. g4 {[%clk 0:02:49]} 12...
Nh4 {[%clk 0:02:48.5]} 13. f4 {[%clk 0:02:46.3]} 13... h5 {[%clk 0:02:25.3]} 14.
gxh5 {[%clk 0:02:36]} 14... Nf5 {[%clk 0:02:25.2]} 15. Nf3 {[%clk 0:01:56.2]}
15... Nb3 {[%clk 0:02:20.1]} 16. Rb1 {[%clk 0:01:56.2]} 16... Nxc1 {[%clk
0:02:20]} 17. Qxc1 {[%clk 0:01:56.9]} 17... Rxh5 {[%clk 0:02:18.3]} 18. Nfg5
{[%clk 0:01:50.4]} 18... Rh6 {[%clk 0:02:08.5]} 19. Kg2 {[%clk 0:01:29.4]} 19...
f6 {[%clk 0:01:57.1]} 20. Nf3 {[%clk 0:01:29]} 20... Be7 {[%clk 0:01:56.6]} 21.
Nf2 {[%clk 0:01:16]} 21... O-O-O {[%clk 0:01:45.7]} 22. Ng4 {[%clk 0:01:14.4]}
22... Rh7 {[%clk 0:01:42.8]} 23. b4 {[%clk 0:01:09]} 23... cxb3 {[%clk
0:01:39.2]} 24. Bd1 {[%clk 0:00:44.7]} 24... Nh4+ {[%clk 0:00:57.4]} 25. Nxh4
{[%clk 0:00:41.9]} 25... Rxh4 {[%clk 0:00:57.6]} 26. h3 {[%clk 0:00:14]} 26...
Rdh8 {[%clk 0:00:56.3]} 27. Rf3 {[%clk 0:00:13.9]} 27... Be8 {[%clk 0:00:49.2]}
28. Rxb3 {[%clk 0:00:13.1]} 28... Qc7 {[%clk 0:00:48.7]} 29. Nf2 {[%clk
0:00:11.1]} 29... Bg6 {[%clk 0:00:28]} 30. Rg3 {[%clk 0:00:10.7]} 30... Bf5
{[%clk 0:00:27.9]} 31. Bg4 {[%clk 0:00:07.9]} 31... g5 {[%clk 0:00:17.2]} 32.
Bxf5 {[%clk 0:00:03.1]} 32... exf5 {[%clk 0:00:14]} 33. exf6 {[%clk 0:00:01.8]}
33... Bxf6 {[%clk 0:00:10.1]} 34. fxg5 {[%clk 0:00:01.8]} 34... Be7 {[%clk
0:00:10.1]} 35. g6 {[%clk 0:00:01.7]} 35... Bd6 {[%clk 0:00:09.8]} 36. g7 {[%clk
0:00:01.3]} 36... Rg8 {[%clk 0:00:09.2]} 37. Rg4 {[%clk 0:00:01.2]} 37... Rxg7
{[%clk 0:00:08.8]} 0-1

[Event "*** SCC Grand Prix: Titled Tuesday Blitz"]
[Site "Chess.com"]
[Date "2020.07.14"]
[Round "6"]
[White "Lagmantr"]
[Black "tlomigtlis"]
[Result "1-0"]
[WhiteElo "2645"]
[BlackElo "2424"]
[TimeControl "180+1"]
[EndTime "11:07:18 PDT"]
[Termination "Lagmantr won on time"]

1. Nf3 {[%clk 0:02:59.9]} 1... Nf6 {[%clk 0:02:59.5]} 2. c4 {[%clk 0:02:59.8]}
2... c6 {[%clk 0:02:59.5]} 3. g3 {[%clk 0:02:59.1]} 3... d5 {[%clk 0:02:59.8]}
4. Bg2 {[%clk 0:02:59.6]} 4... Bg4 {[%clk 0:03:00.3]} 5. O-O {[%clk 0:02:59.8]}
5... Nbd7 {[%clk 0:03:00.5]} 6. b3 {[%clk 0:02:55.8]} 6... e5 {[%clk 0:02:59.7]}
7. h3 {[%clk 0:02:50.4]} 7... Bxf3 {[%clk 0:02:47]} 8. Bxf3 {[%clk 0:02:43.6]}
8... Bd6 {[%clk 0:02:47.9]} 9. Bb2 {[%clk 0:02:43]} 9... O-O {[%clk 0:02:46.8]}
10. d3 {[%clk 0:02:42.9]} 10... Qc7 {[%clk 0:02:46.3]} 11. cxd5 {[%clk
0:02:37.8]} 11... cxd5 {[%clk 0:02:44.9]} 12. Nc3 {[%clk 0:02:37.6]} 12... Qa5
{[%clk 0:02:38.6]} 13. Qe1 {[%clk 0:02:32.5]} 13... Kh8 {[%clk 0:02:33.2]} 14.
Nxd5 {[%clk 0:02:30.9]} 14... Qa6 {[%clk 0:02:17.3]} 15. Ne3 {[%clk 0:02:23]}
15... Rac8 {[%clk 0:02:14.4]} 16. Nc4 {[%clk 0:02:11]} 16... Bc7 {[%clk
0:02:09.8]} 17. a4 {[%clk 0:02:07.1]} 17... Rfe8 {[%clk 0:02:03]} 18. b4 {[%clk
0:02:03]} 18... Rb8 {[%clk 0:01:50.3]} 19. Qc3 {[%clk 0:01:49.3]} 19... Qe6
{[%clk 0:01:47.5]} 20. Rac1 {[%clk 0:01:43.9]} 20... Qxh3 {[%clk 0:01:42.8]} 21.
a5 {[%clk 0:01:29.8]} 21... Ng4 {[%clk 0:01:23.7]} 22. Bxg4 {[%clk 0:01:29.2]}
22... Qxg4 {[%clk 0:01:24.6]} 23. Ne3 {[%clk 0:01:29.7]} 23... Qd4 {[%clk
0:01:01.2]} 24. Qxc7 {[%clk 0:01:29.6]} 24... Qxb2 {[%clk 0:01:01.3]} 25. Qxd7
{[%clk 0:01:30.1]} 25... Qxe2 {[%clk 0:01:01.4]} 26. Qxf7 {[%clk 0:01:30.4]}
26... Qxd3 {[%clk 0:01:00.9]} 27. Rc7 {[%clk 0:01:30.6]} 27... Rg8 {[%clk
0:01:00.2]} 28. Rd1 {[%clk 0:01:30.7]} 28... Qe2 {[%clk 0:00:59.4]} 29. Rxb7
{[%clk 0:01:26.9]} 29... Rbf8 {[%clk 0:00:59.1]} 30. Rdd7 {[%clk 0:01:04.4]}
30... Rxf7 {[%clk 0:00:51.7]} 31. Rxf7 {[%clk 0:01:05.3]} 31... a6 {[%clk
0:00:50.5]} 32. b5 {[%clk 0:01:05]} 32... axb5 {[%clk 0:00:47.5]} 33. a6 {[%clk
0:01:05.4]} 33... b4 {[%clk 0:00:47.1]} 34. a7 {[%clk 0:01:05.1]} 34... Qa2
{[%clk 0:00:17.1]} 35. Nf5 {[%clk 0:00:59.7]} 35... b3 {[%clk 0:00:06.1]} 36.
Nh6 {[%clk 0:00:19.8]} 36... b2 {[%clk 0:00:05.1]} 37. Nxg8 {[%clk 0:00:19.5]}
37... b1=Q+ {[%clk 0:00:05.2]} 38. Rxb1 {[%clk 0:00:19.9]} 38... Qxb1+ {[%clk
0:00:06.1]} 39. Kh2 {[%clk 0:00:20.2]} 39... Qe4 {[%clk 0:00:03.9]} 40. Rf8
{[%clk 0:00:15.9]} 1-0

[Event "*** SCC Grand Prix: Titled Tuesday Blitz"]
[Site "Chess.com"]
[Date "2020.07.14"]
[Round "6"]
[White "coalescenet"]
[Black "Klaus1995"]
[Result "1-0"]
[WhiteElo "2346"]
[BlackElo "1895"]
[TimeControl "180+1"]
[EndTime "11:07:18 PDT"]
[Termination "coalescenet won on time"]

1. d4 {[%clk 0:03:00.9]} 1... Nf6 {[%clk 0:02:59.2]} 2. c4 {[%clk 0:03:00.6]}
2... e6 {[%clk 0:02:56.5]} 3. Nf3 {[%clk 0:02:59.1]} 3... c5 {[%clk 0:02:57]} 4.
d5 {[%clk 0:02:58.1]} 4... exd5 {[%clk 0:02:57.9]} 5. cxd5 {[%clk 0:02:59]} 5...
d6 {[%clk 0:02:56.5]} 6. Nc3 {[%clk 0:02:59.5]} 6... g6 {[%clk 0:02:56.3]} 7.
Bf4 {[%clk 0:02:59.9]} 7... a6 {[%clk 0:02:53.9]} 8. a4 {[%clk 0:02:59.7]} 8...
Bg7 {[%clk 0:02:53.1]} 9. e3 {[%clk 0:02:59.3]} 9... Bg4 {[%clk 0:02:52.3]} 10.
Be2 {[%clk 0:02:56.8]} 10... O-O {[%clk 0:02:52.2]} 11. O-O {[%clk 0:02:53.7]}
11... Re8 {[%clk 0:02:52.4]} 12. Nd2 {[%clk 0:02:44.2]} 12... Bxe2 {[%clk
0:02:51.6]} 13. Qxe2 {[%clk 0:02:45.1]} 13... Qc7 {[%clk 0:02:51.8]} 14. Nc4
{[%clk 0:02:40.1]} 14... Rd8 {[%clk 0:02:43.3]} 15. h3 {[%clk 0:02:34.3]} 15...
b6 {[%clk 0:02:22.5]} 16. Rfc1 {[%clk 0:02:24.4]} 16... Ne8 {[%clk 0:01:54.6]}
17. Qf3 {[%clk 0:02:18.6]} 17... Nd7 {[%clk 0:01:51.5]} 18. Ne4 {[%clk
0:02:04.1]} 18... Ndf6 {[%clk 0:01:44.9]} 19. Nexd6 {[%clk 0:01:59.5]} 19...
Nxd6 {[%clk 0:01:41.5]} 20. Nxd6 {[%clk 0:01:58.7]} 20... Rxd6 {[%clk
0:01:41.6]} 21. e4 {[%clk 0:01:37.9]} 21... Nh5 {[%clk 0:01:15.7]} 22. e5 {[%clk
0:01:20.3]} 22... Rdd8 {[%clk 0:00:56.2]} 23. d6 {[%clk 0:01:13.9]} 23... Qd7
{[%clk 0:00:56]} 24. Bh2 {[%clk 0:01:02.9]} 24... Bh6 {[%clk 0:00:55.4]} 25. Rc4
{[%clk 0:00:56.1]} 25... Re8 {[%clk 0:00:53.8]} 26. a5 {[%clk 0:00:53.2]} 26...
Qb5 {[%clk 0:00:45.9]} 27. b3 {[%clk 0:00:49.9]} 27... bxa5 {[%clk 0:00:44.8]}
28. Qd3 {[%clk 0:00:19.8]} 28... Nf4 {[%clk 0:00:36.2]} 29. Qe4 {[%clk
0:00:17.1]} 29... Qxb3 {[%clk 0:00:25.7]} 30. Bxf4 {[%clk 0:00:15.2]} 30... Bxf4
{[%clk 0:00:16.9]} 31. Qxf4 {[%clk 0:00:15.7]} 31... Qb2 {[%clk 0:00:16.9]} 32.
Rac1 {[%clk 0:00:13.2]} 32... Rxe5 {[%clk 0:00:15.7]} 33. Rxc5 {[%clk
0:00:11.8]} 33... Rxc5 {[%clk 0:00:15.1]} 34. Rxc5 {[%clk 0:00:12.4]} 34... Qb1+
{[%clk 0:00:15.2]} 35. Kh2 {[%clk 0:00:12.8]} 35... Rd8 {[%clk 0:00:13.5]} 36.
Rc7 {[%clk 0:00:10.2]} 36... Qb4 {[%clk 0:00:07.5]} 37. Qxf7+ {[%clk 0:00:09.6]}
1-0